bitfinex-derivatives/quotes_SOLF0:USTF0_20250603
["timestamp","ask_amount","ask_price","bid_price","bid_amount"]
[1748994489200,6.4306,155.4,155.37,0.04680699]
[1748994489499,0.04338618,155.41,155.37,6.47840699]
[1748994489893,6.47378618,155.41,155.37,0.04680699]
[1748994491000,6.47378618,155.41,155.38,6.4314]
[1748994491300,6.4306,155.4,155.37,0.04680699]
[1748994491495,0.04338618,155.41,155.37,0.04680699]
[1748994491892,6.47368618,155.41,155.37,0.04680699]
[1748994492088,6.47368618,155.41,155.37,6.00777342]
[1748994492300,6.47368618,155.41,155.37,12.43927342]
[1748994492999,6.47368618,155.41,155.37,6.47830699]
[1748994493201,6.47368618,155.41,155.37,12.43927342]
[1748994493599,6.47368618,155.41,155.38,6.4313]
[1748994493901,6.47368618,155.41,155.37,6.00777342]
[1748994494097,6.47368618,155.41,155.37,12.43947342]
[1748994494405,0.04338618,155.41,155.37,6.00777342]
[1748994495000,0.04338618,155.41,155.37,0.04680699]
[1748994495497,6.4307,155.4,155.37,0.04680699]
[1748994497303,6.4307,155.4,155.37,12.43847077]
[1748994498206,0.04338618,155.41,155.38,6.4313]
[1748994498207,6.47368618,155.41,155.38,6.4313]
[1748994499401,0.04338618,155.41,155.37,6.00619937]
[1748994499597,0.04338618,155.41,155.39,5.95939238]
[1748994500106,0.04338618,155.41,155.39,38.07939238]
[1748994501309,0.04338618,155.41,155.39,44.51009238]
[1748994501508,0.04338618,155.41,155.39,38.07939238]
[1748994502014,0.04338618,155.41,155.4,6.4306]
[1748994508014,6.4279,155.47,155.43,6.429]
[1748994508213,6.4279,155.47,155.43,5.95939238]
[1748994508417,6.4279,155.47,155.43,38.07939238]
[1748994508919,6.4745272,155.47,155.43,38.12308702]
[1748994509117,6.4281,155.46,155.43,38.12308702]
[1748994510418,6.4281,155.46,155.43,44.55238702]
[1748994511119,6.4286,155.45,155.43,32.16369464]
[1748994511517,6.4286,155.45,155.43,0.04369464]
[1748994512214,4.57612982,155.44,155.43,0.04369464]
[1748994512418,6.4286,155.45,155.43,0.04369464]
[1748994512814,4.57755971,155.44,155.43,6.47299464]
[1748994513023,0.0466272,155.47,155.43,6.47299464]
[1748994513521,6.4286,155.45,155.43,0.04369464]
[1748994513723,0.0466272,155.47,155.43,0.04369464]
[1748994514021,6.4289,155.44,155.43,0.04369464]
[1748994514714,11.00578087,155.44,155.43,0.04369464]
[1748994515516,6.4289,155.44,155.43,0.04369464]
[1748994516122,11.00509978,155.44,155.43,0.04369464]
[1748994516421,11.00509784,155.44,155.43,0.04369464]
[1748994516617,6.4303,155.41,155.38,32.12]
[1748994516817,4.57562483,155.4,155.38,32.12]
[1748994517019,2.0466,155.44,155.38,38.5513]
[1748994517214,6.4305,155.41,155.38,38.5513]
[1748994517619,6.47620965,155.41,155.38,38.59562808]
[1748994518223,4.56857936,155.4,155.38,32.16432808]
[1748994518417,0.04570965,155.41,155.38,32.16432808]
[1748994518622,0.04570965,155.41,155.38,0.04432808]
[1748994518826,4.56766857,155.4,155.38,0.04432808]
[1748994519022,4.56783863,155.39,155.38,0.04432808]
[1748994519223,0.04570965,155.41,155.38,0.04432808]
[1748994519421,4.5677322,155.4,155.38,0.04432808]
[1748994519624,0.04570965,155.41,155.38,0.04432808]
[1748994519924,6.4307,155.4,155.38,0.04432808]
[1748994521021,4.56902507,155.39,155.38,0.04432808]
[1748994521222,6.4307,155.4,155.38,0.04432808]
[1748994521422,4.56905387,155.39,155.38,0.04432808]
[1748994521625,6.431,155.39,155.38,0.04432808]
[1748994522020,4.56889033,155.39,155.38,0.04432808]
[1748994522321,0.04570965,155.41,155.38,0.04432808]
[1748994522526,6.4308,155.4,155.38,0.04432808]
[1748994523724,0.04570965,155.41,155.38,0.04432808]
[1748994523924,0.04570965,155.41,155.39,5.95939238]
[1748994524223,6.47600965,155.41,155.38,6.47552808]
[1748994524425,0.04570965,155.41,155.38,6.47552808]
[1748994524634,0.04570965,155.41,155.38,0.04432808]
[1748994525719,6.4308,155.4,155.38,0.04432808]
[1748994526121,6.4308,155.4,155.38,6.47572808]
[1748994526317,6.4308,155.4,155.38,0.04432808]
[1748994529231,6.47600965,155.41,155.38,6.47552808]
[1748994530131,6.47600965,155.41,155.39,6.431]
[1748994530428,6.47600965,155.41,155.38,0.04432808]
[1748994530931,6.47600965,155.41,155.38,6.47542808]
[1748994531925,0.04570965,155.41,155.39,5.95939238]
[1748994532528,6.47590965,155.41,155.39,5.95939238]
[1748994534332,0.04570965,155.41,155.38,0.04432808]
[1748994535837,6.4306,155.4,155.38,0.04432808]
[1748994536132,0.04570965,155.41,155.38,0.04432808]
[1748994537134,6.431,155.39,155.38,0.04432808]
[1748994537940,6.4307,155.4,155.38,0.04432808]
[1748994539240,0.04570965,155.41,155.38,0.04432808]
[1748994539940,6.431,155.39,155.38,0.04432808]
[1748994540344,0.04570965,155.41,155.38,0.04432808]
[1748994540547,6.4306,155.4,155.38,0.04432808]
[1748994541945,0.04570965,155.41,155.38,6.00372046]
[1748994542748,0.04570965,155.41,155.39,6.4307]
[1748994543544,0.04570965,155.41,155.4,12.38999238]
[1748994548745,5.44321723,155.48,155.4,13.89584769]
[1748994548746,2.0687,155.48,155.4,13.89584769]
[1748994548953,2.0687,155.48,155.43,5.95939238]
[1748994549144,2.0687,155.48,155.41,5.95939238]
[1748994549444,6.4294,155.43,155.41,5.95939238]
[1748994549838,6.4298,155.42,155.4,0.04325153]
[1748994550035,0.04731805,155.44,155.4,0.04325153]
[1748994550247,4.56628342,155.43,155.4,0.04325153]
[1748994550451,6.43,155.42,155.4,0.04325153]
[1748994550944,6.4296,155.43,155.4,6.47385153]
[1748994551148,0.04731805,155.44,155.4,0.04325153]
[1748994551347,4.56630632,155.43,155.4,0.04325153]
[1748994551650,4.56604399,155.42,155.4,0.04325153]
[1748994551946,4.57088975,155.41,155.4,0.04325153]
[1748994552247,4.57096862,155.41,155.4,0.04325153]
[1748994552549,6.4301,155.42,155.4,0.04325153]
[1748994553239,4.57652006,155.41,155.4,0.04325153]
[1748994553544,4.57651762,155.41,155.4,0.04325153]
[1748994553742,6.4302,155.41,155.4,0.04325153]
[1748994554043,10.99689702,155.41,155.4,0.04325153]
[1748994554249,10.99672169,155.41,155.4,0.04325153]
[1748994554442,6.4302,155.41,155.4,0.04325153]
[1748994554643,10.99520779,155.41,155.4,0.04325153]
[1748994554842,4.56498954,155.41,155.4,0.04325153]
[1748994555040,6.4299,155.42,155.4,0.04325153]
[1748994555243,4.56537295,155.41,155.4,0.04325153]
[1748994555844,6.4299,155.42,155.4,0.04325153]
[1748994557248,6.4302,155.41,155.4,0.04325153]
[1748994561647,6.4299,155.42,155.4,6.47375153]
[1748994561844,6.4299,155.42,155.4,0.04325153]
[1748994562046,6.4295,155.43,155.41,6.4301]
[1748994562247,0.04731805,155.44,155.41,6.4301]
[1748994562747,6.47631805,155.44,155.41,6.4301]
[1748994562950,0.04731805,155.44,155.4,6.47365153]
[1748994563351,6.4296,155.43,155.4,6.47365153]
[1748994566747,6.47641805,155.44,155.41,6.4301]
[1748994568451,6.47641805,155.44,155.4,6.47375153]
[1748994569054,6.4294,155.43,155.4,6.47375153]
[1748994569346,0.04731805,155.44,155.4,6.47375153]
[1748994570158,0.04731805,155.44,155.41,5.95939238]
[1748994570852,4.56992216,155.43,155.41,5.95939238]
[1748994571056,0.04731805,155.44,155.41,5.95939238]
[1748994571749,4.57391318,155.43,155.42,6.4297]
[1748994571952,4.57391318,155.43,155.41,5.95939238]
[1748994572153,0.04731805,155.44,155.4,0.04325153]
[1748994572357,4.57374539,155.43,155.4,0.04325153]
[1748994572551,6.00671043,155.44,155.4,0.04325153]
[1748994572756,4.57321957,155.42,155.4,0.04325153]
[1748994572956,6.00671043,155.44,155.4,0.04325153]
[1748994573360,4.57302659,155.43,155.4,0.04325153]
[1748994573556,6.00671043,155.44,155.4,0.04325153]
[1748994573755,6.4301,155.42,155.4,0.04325153]
[1748994574158,4.57342854,155.41,155.4,0.04325153]
[1748994574351,6.4301,155.42,155.4,0.04325153]
[1748994574758,6.4302,155.41,155.4,0.04325153]
[1748994575360,0.04731805,155.44,155.4,0.04325153]
[1748994575954,6.43,155.42,155.4,0.04325153]
[1748994576258,4.57343699,155.41,155.4,0.04325153]
[1748994576457,6.43,155.42,155.4,0.04325153]
[1748994577462,4.56443976,155.41,155.4,0.04325153]
[1748994577664,6.43,155.42,155.4,0.04325153]
[1748994577958,10.99463976,155.41,155.4,0.04325153]
[1748994578259,10.99438274,155.41,155.4,0.04325153]
[1748994578463,6.4302,155.41,155.4,0.04325153]
[1748994579062,6.4302,155.41,155.36,8.01508281]
[1748994579063,6.4318,155.37,155.36,8.01508281]
[1748994579264,5.95939238,155.37,155.31,8.01508281]
[1748994579467,5.95939238,155.33,155.3,8.01508281]
[1748994579661,4.55969156,155.32,155.26,40.09508281]
[1748994579867,5.95939238,155.33,155.26,32.08]
[1748994580061,0.04710527,155.31,155.28,0.04774649]
[1748994580365,6.4347,155.3,155.28,0.04774649]
[1748994580556,4.55750125,155.3,155.28,0.04774649]
[1748994580761,0.04710527,155.31,155.28,0.04774649]
[1748994581160,4.55811665,155.3,155.28,0.04774649]
[1748994581358,0.04710527,155.31,155.28,0.04774649]
[1748994581864,4.55804528,155.3,155.28,0.04774649]
[1748994582169,6.435,155.3,155.28,0.04774649]
[1748994583261,6.4351,155.29,155.28,0.04774649]
[1748994584359,6.4362,155.27,155.23,46.72829238]
[1748994585558,6.47986107,155.27,155.23,46.77071329]
[1748994585758,6.47986107,155.27,155.24,6.4372]
[1748994585955,0.04366107,155.27,155.24,6.4372]
[1748994587467,0.04366107,155.27,155.25,6.4367]
[1748994590265,0.04366107,155.27,155.24,6.437]
[1748994591466,6.47996107,155.27,155.24,6.437]
[1748994591666,6.47996107,155.27,155.23,46.77091329]
[1748994592361,0.04366107,155.27,155.25,5.95939238]
[1748994593457,0.04366107,155.27,155.25,12.39609238]
[1748994594773,0.04366107,155.27,155.26,6.4364]
[1748994595271,0.04366107,155.27,155.23,32.14242091]
[1748994596368,6.437,155.25,155.23,32.14242091]
[1748994596564,6.00305345,155.27,155.23,32.14242091]
[1748994596763,6.4372,155.24,155.23,0.04242091]
[1748994601862,6.00305345,155.27,155.23,0.04242091]
[1748994601863,0.04366107,155.27,155.23,0.04242091]
[1748994602066,0.04366107,155.27,155.24,5.95939238]
[1748994602266,0.04366107,155.27,155.23,0.04242091]
[1748994603066,6.4365,155.26,155.23,6.47972091]
[1748994603269,0.04366107,155.27,155.23,0.04242091]
[1748994603669,6.47986107,155.27,155.24,6.4372]
[1748994605672,0.04366107,155.27,155.23,6.47982091]
[1748994606673,6.47976107,155.27,155.24,6.4372]
[1748994606975,0.04366107,155.27,155.23,6.00181329]
[1748994607380,6.4365,155.26,155.24,6.4372]
[1748994607676,0.04366107,155.27,155.24,6.4372]
[1748994608883,0.04366107,155.27,155.23,12.43931329]
[1748994609174,0.04366107,155.27,155.23,6.00181329]
[1748994609379,5.95939238,155.26,155.23,0.04242091]
[1748994609577,5.95939238,155.26,155.14,8.01508281]
[1748994609578,5.95939238,155.24,155.17,32.12]
[1748994609877,5.95939238,155.22,155.17,32.12]
[1748994610581,5.95939238,155.22,155.18,0.04253421]
[1748994610582,0.04700398,155.21,155.18,0.04253421]
[1748994610876,6.4393,155.19,155.18,0.04253421]
[1748994615885,0.04700398,155.21,155.18,0.04253421]
[1748994617077,0.04700398,155.21,155.18,6.48223421]
[1748994617277,0.04700398,155.21,155.18,0.04253421]
[1748994618579,6.4393,155.19,155.18,0.04253421]
[1748994621889,38.07939238,155.19,155.08,32.12]
[1748994622082,5.95939238,155.16,155.09,5.95939238]
[1748994622487,6.4414,155.14,155.09,5.95939238]
[1748994623089,0.04322583,155.13,155.1,0.0477536]
[1748994623287,6.48502583,155.13,155.1,0.0477536]
[1748994623588,6.48502583,155.13,155.1,6.4904536]
[1748994623788,0.04322583,155.13,155.1,0.0477536]
[1748994624182,0.04322583,155.13,155.11,6.4422]
[1748994624682,0.04322583,155.13,155.1,0.0477536]
[1748994625075,0.04322583,155.13,155.12,6.4422]
[1748994626091,0.04322583,155.13,155.12,12.40159238]
[1748994626490,32.12,155.19,155.14,6.4412]
[1748994626691,6.4397,155.18,155.14,5.95939238]
[1748994626891,32.12,155.19,155.15,6.4407]
[1748994627387,38.6086875,155.19,155.15,6.48181917]
[1748994627691,32.1690875,155.19,155.15,6.48181917]
[1748994627888,6.44,155.18,155.15,6.48181917]
[1748994628287,6.44,155.18,155.15,0.04111917]
[1748994628491,6.4398,155.18,155.15,0.04111917]
[1748994628889,32.1690875,155.19,155.15,0.04111917]
[1748994629089,0.0490875,155.19,155.15,0.04111917]
[1748994630694,6.44,155.18,155.15,6.48181917]
[1748994630895,0.0490875,155.19,155.15,0.04111917]
[1748994631601,6.4886875,155.19,155.16,6.4404]
[1748994632501,6.4397,155.18,155.15,6.48191917]
[1748994633704,6.4402,155.17,155.15,0.04111917]
[1748994635299,0.0490875,155.19,155.15,6.48201917]
[1748994635503,6.4398,155.18,155.15,6.48201917]
[1748994636704,6.4398,155.18,155.15,0.04111917]
[1748994637803,6.4402,155.17,155.15,0.04111917]
[1748994638002,0.0490875,155.19,155.15,0.04111917]
[1748994638003,5.95939238,155.18,155.15,0.04111917]
[1748994638402,6.4405,155.16,155.15,0.04111917]
[1748994642911,6.4403,155.17,155.15,0.04111917]
[1748994643117,0.0490875,155.19,155.15,0.04111917]
[1748994643519,6.4398,155.18,155.15,0.04111917]
[1748994643717,0.0490875,155.19,155.15,6.00051155]
[1748994643911,0.0490875,155.19,155.17,6.44]
[1748994644412,0.0490875,155.19,155.15,6.00051155]
[1748994644721,6.4884875,155.19,155.16,6.4403]
[1748994647112,0.0490875,155.19,155.15,6.00051155]
[1748994648014,6.4886875,155.19,155.16,6.4405]
[1748994648816,6.4398,155.18,155.16,6.4405]
[1748994650018,6.4885875,155.19,155.16,6.4405]
[1748994652821,0.0490875,155.19,155.17,6.4397]
[1748994653324,6.4883875,155.19,155.16,6.4404]
[1748994655012,0.0490875,155.19,155.15,6.00051155]
[1748994655218,140.63900684,155.26,155.17,5.95939238]
[1748994655415,32.22,155.29,155.22,5.95939238]
[1748994655624,6.4357,155.28,155.24,6.4371]
[1748994656021,32.22,155.29,155.24,6.4371]
[1748994656022,6.436,155.27,155.24,6.4371]
[1748994656324,6.48179761,155.27,155.24,6.48167737]
[1748994656918,0.04579761,155.27,155.24,6.00396975]
[1748994658127,0.04579761,155.27,155.25,6.4368]
[1748994659316,0.04579761,155.27,155.25,12.39619238]
[1748994660223,0.04579761,155.27,155.25,5.95939238]
[1748994660422,6.48219761,155.27,155.25,5.95939238]
[1748994660622,6.48219761,155.27,155.24,0.04457737]
[1748994660623,0.04579761,155.27,155.24,0.04457737]
[1748994661024,6.48189761,155.27,155.24,0.04457737]
[1748994661226,0.04579761,155.27,155.24,0.04457737]
[1748994662025,0.04579761,155.27,155.24,6.48167737]
[1748994662230,6.48199761,155.27,155.24,6.48167737]
[1748994663224,0.04579761,155.27,155.24,6.48167737]
[1748994663420,0.04579761,155.27,155.24,0.04457737]
[1748994663935,6.48179761,155.27,155.24,6.48167737]
[1748994664323,0.04579761,155.27,155.24,0.04457737]
[1748994664931,6.4368,155.25,155.24,0.04457737]
[1748994665526,5.95939238,155.26,155.19,32.22]
[1748994665733,5.95939238,155.24,155.19,32.22]
[1748994666034,5.95939238,155.24,155.19,38.659]
[1748994666229,6.4384,155.22,155.19,38.659]
[1748994666428,6.4384,155.22,155.19,32.26865224]
[1748994666429,0.04550042,155.22,155.19,32.26865224]
[1748994667327,6.4387,155.21,155.19,32.26865224]
[1748994669036,6.4389,155.2,155.19,32.26865224]
[1748994669337,6.4389,155.2,155.19,0.04865224]
[1748994670624,12.39829238,155.2,155.19,0.04865224]
[1748994670833,6.4405,155.16,155.13,44.60079238]
[1748994671031,5.95939238,155.2,155.13,44.60079238]
[1748994671236,6.4403,155.17,155.13,38.15939238]
[1748994671438,6.4403,155.17,155.14,6.4411]
[1748994671824,6.48886215,155.17,155.14,6.48440404]
[1748994672336,0.04856215,155.17,155.15,6.4408]
[1748994672734,0.04856215,155.17,155.16,6.4405]
[1748994673440,0.04856215,155.17,155.15,6.4408]
[1748994673636,0.04856215,155.17,155.14,0.04330404]
[1748994674442,0.04856215,155.17,155.15,5.95939238]
[1748994674639,32.2,155.24,155.16,6.4405]
[1748994674939,32.2,155.24,155.17,38.15939238]
[1748994675435,32.2,155.24,155.19,6.439]
[1748994675836,6.48671021,155.23,155.2,0.04157745]
[1748994676032,0.04891021,155.23,155.2,0.04157745]
[1748994676942,0.04891021,155.23,155.2,6.48027745]
[1748994677344,6.48691021,155.23,155.2,0.04157745]
[1748994677538,0.04891021,155.23,155.2,0.04157745]
[1748994678338,6.438,155.22,155.2,0.04157745]
[1748994678535,0.04891021,155.23,155.2,0.04157745]
[1748994678937,6.4385,155.21,155.2,0.04157745]
[1748994680545,6.4401,155.17,155.14,32.2]
[1748994681447,6.48942349,155.17,155.14,32.24773734]
[1748994681946,6.48942349,155.17,155.14,38.68893734]
[1748994683045,6.48942349,155.17,155.15,6.4409]
[1748994683046,0.04932349,155.17,155.15,6.4409]
[1748994684444,0.04932349,155.17,155.14,32.24773734]
[1748994685445,6.4409,155.16,155.14,32.24773734]
[1748994686548,0.04932349,155.17,155.14,32.24773734]
[1748994686549,6.4409,155.15,155.14,32.24773734]
[1748994687052,6.4409,155.15,155.14,0.04773734]
[1748994687438,0.04932349,155.17,155.14,0.04773734]
[1748994687651,0.04932349,155.17,155.15,5.95939238]
[1748994687843,0.04932349,155.17,155.16,6.4405]
[1748994688240,32.2,155.22,155.15,38.15939238]
[1748994688444,2.1357,155.24,155.18,5.95939238]
[1748994688746,6.4383,155.22,155.19,6.439]
[1748994689349,6.47967603,155.22,155.19,6.48630107]
[1748994690738,6.4385,155.21,155.19,0.04730107]
[1748994692749,0.04137603,155.22,155.19,0.04730107]
[1748994693346,0.04137603,155.22,155.2,5.95939238]
[1748994693748,0.04137603,155.22,155.21,6.4385]
[1748994694742,0.04137603,155.22,155.2,12.39819238]
[1748994695654,0.04137603,155.22,155.19,32.24730107]
[1748994696040,6.4388,155.21,155.19,32.24730107]
[1748994696351,0.04137603,155.22,155.19,0.04730107]
[1748994697449,6.4387,155.21,155.19,0.04730107]
[1748994698051,6.4389,155.2,155.19,0.04730107]
[1748994698248,0.04137603,155.22,155.19,0.04730107]
[1748994699358,6.4389,155.2,155.19,0.04730107]
[1748994699955,6.4385,155.21,155.19,6.48650107]
[1748994700953,6.47957603,155.22,155.19,6.48650107]
[1748994701554,6.4385,155.21,155.19,0.04730107]
[1748994703353,6.47957603,155.22,155.19,6.48650107]
[1748994704351,6.4385,155.21,155.19,6.48650107]
[1748994705965,6.47957603,155.22,155.19,6.48650107]
[1748994707966,6.4386,155.21,155.19,6.48650107]
[1748994708967,6.4386,155.21,155.19,0.04730107]
[1748994709468,0.04137603,155.22,155.19,0.04730107]
[1748994710065,6.4385,155.21,155.19,0.04730107]
[1748994711079,6.4389,155.2,155.19,0.04730107]
[1748994711674,5.95939238,155.2,155.13,40.30468691]
[1748994711872,38.27939238,155.2,155.13,32.32]
[1748994712383,6.4408,155.16,155.13,38.7615]
[1748994712584,6.48326486,155.16,155.13,38.80957556]
[1748994713176,0.04246486,155.16,155.13,32.36807556]
[1748994714077,0.04246486,155.16,155.14,5.95939238]
[1748994714476,0.04246486,155.16,155.15,6.4409]
[1748994716179,0.04246486,155.16,155.15,12.40029238]
[1748994716982,0.04246486,155.16,155.15,6.4409]
[1748994718186,0.04246486,155.16,155.13,46.31215485]
[1748994718385,0.04246486,155.16,155.13,38.32746794]
[1748994719485,0.04246486,155.16,155.13,44.76896794]
[1748994719681,0.04246486,155.16,155.13,32.36807556]
[1748994720179,0.04246486,155.16,155.13,0.04807556]
[1748994720889,6.00185724,155.16,155.13,0.04807556]
[1748994721189,6.4425,155.12,155.08,14.42828691]
[1748994721483,6.4425,155.12,155.07,32.32]
[1748994721484,5.95939238,155.14,155.07,46.26407929]
[1748994721685,32.32,155.15,155.07,32.32]
[1748994721686,5.95939238,155.12,155.07,32.32]
[1748994721885,5.95939238,155.12,155.04,46.26407929]
[1748994722288,6.4441,155.08,155.06,0.04599349]
[1748994723790,0.04312142,155.1,155.07,5.95939238]
[1748994724188,0.04312142,155.1,155.06,0.04599349]
[1748994724694,6.4437,155.09,155.06,0.04599349]
[1748994724895,0.04312142,155.1,155.06,0.04599349]
[1748994725288,6.4443,155.07,155.06,0.04599349]
[1748994725690,5.95939238,155.08,155.01,7.98468691]
[1748994725891,5.95939238,155.06,154.98,13.94407929]
[1748994726088,131.05939238,155.08,155.0,5.95939238]
[1748994726291,6.4459,155.04,155.0,6.447]
[1748994726490,5.95939238,155.06,154.98,40.44979238]
[1748994726687,0.04168605,155.04,155.0,0.04761968]
[1748994726991,0.04168605,155.04,155.0,6.00701206]
[1748994727192,0.04168605,155.04,155.0,0.04761968]
[1748994727891,6.48748605,155.04,155.0,6.49451968]
[1748994728204,0.04168605,155.04,155.0,0.04761968]
[1748994728696,6.48718605,155.04,155.0,6.49451968]
[1748994729398,6.4459,155.03,155.0,0.04761968]
[1748994730493,0.04168605,155.04,155.0,0.04761968]
[1748994730494,6.4464,155.02,155.0,0.04761968]
[1748994732492,0.04168605,155.04,155.0,6.00701206]
[1748994732704,0.04168605,155.04,155.02,5.95939238]
[1748994732891,0.04168605,155.04,155.03,6.4459]
[1748994733698,0.04168605,155.04,155.03,12.40529238]
[1748994734696,0.04168605,155.04,155.01,4.3835]
[1748994734697,0.04168605,155.04,155.02,12.40569238]
[1748994735297,0.04168605,155.04,155.02,6.4463]
[1748994735499,6.00107843,155.04,155.0,6.49471968]
[1748994735791,6.00107843,155.04,155.0,0.04761968]
[1748994736187,0.04168605,155.04,155.0,0.04761968]
[1748994737196,0.04168605,155.04,155.01,5.95939238]
[1748994737600,0.04168605,155.04,155.03,6.4459]
[1748994738194,0.04168605,155.04,155.03,12.40529238]
[1748994738390,6.4435,155.09,155.06,6.4446]
[1748994738603,39.1427,155.11,155.05,5.95939238]
[1748994739002,2.1481,155.13,155.07,5.95939238]
[1748994739202,6.4426,155.11,155.07,5.95939238]
[1748994739397,0.04217088,155.11,155.07,0.0493907]
[1748994740406,5.95939238,155.09,155.07,0.0493907]
[1748994741202,6.4439,155.08,155.07,0.0493907]
[1748994742897,32.7,155.1,155.07,0.0493907]
[1748994743092,0.04217088,155.11,155.07,0.0493907]
[1748994743498,6.48487088,155.11,155.07,6.4936907]
[1748994744003,6.4431,155.1,155.07,6.4936907]
[1748994745101,6.4431,155.1,155.07,0.0493907]
[1748994745500,6.48487088,155.11,155.07,0.0493907]
[1748994745700,6.48487088,155.11,155.07,6.4933907]
[1748994746807,6.443,155.1,155.07,6.4933907]
[1748994747000,6.443,155.1,155.07,0.0493907]
[1748994748500,0.04217088,155.11,155.07,0.0493907]
[1748994748501,6.4435,155.09,155.07,0.0493907]
[1748994748701,0.04217088,155.11,155.07,0.0493907]
[1748994748905,6.4432,155.1,155.04,32.7]
[1748994749101,6.4432,155.1,155.05,5.95939238]
[1748994749997,6.4432,155.1,155.07,6.444]
[1748994750194,6.48487088,155.11,155.06,0.04485047]
[1748994750595,0.04217088,155.11,155.07,6.4441]
[1748994750799,0.04217088,155.11,155.06,0.04485047]
[1748994751104,0.04217088,155.11,155.06,6.48925047]
[1748994752007,6.4433,155.1,155.06,6.48925047]
[1748994752209,6.4433,155.1,155.07,6.4442]
[1748994755608,6.48497088,155.11,155.08,6.4438]
[1748994755812,0.04217088,155.11,155.07,5.95939238]
[1748994756213,6.48477088,155.11,155.08,6.4435]
[1748994756711,0.04217088,155.11,155.07,5.95939238]
[1748994757013,6.443,155.1,155.07,12.40329238]
[1748994757212,6.443,155.1,155.07,5.95939238]
[1748994758105,6.443,155.1,155.08,6.4438]
[1748994758613,0.04217088,155.11,155.08,6.4438]
[1748994758614,6.48487088,155.11,155.08,6.4438]
[1748994758812,0.04217088,155.11,155.07,5.95939238]
[1748994759111,0.04217088,155.11,155.09,5.95939238]
[1748994759508,0.04217088,155.11,155.1,6.443]
[1748994762415,39.03939238,155.2,155.12,5.95939238]
[1748994762615,39.03939238,155.2,155.12,39.03939238]
[1748994763214,6.48406563,155.18,155.14,6.48759326]
[1748994764513,6.4402,155.17,155.14,6.48759326]
[1748994764718,0.04406563,155.18,155.15,6.4409]
[1748994766215,0.04406563,155.18,155.14,12.44698564]
[1748994766909,6.4404,155.17,155.14,6.00578564]
[1748994767515,6.4404,155.17,155.14,12.44688564]
[1748994770320,6.4404,155.17,155.14,6.00578564]
[1748994770525,6.4404,155.17,155.14,0.04639326]
[1748994770526,5.95939238,155.17,155.14,0.04639326]
[1748994771524,6.4409,155.15,155.14,0.04639326]
[1748994773621,0.04406563,155.18,155.14,0.04639326]
[1748994774125,6.48406563,155.18,155.14,6.48759326]
[1748994774713,6.4402,155.17,155.14,0.04639326]
[1748994775231,6.4409,155.15,155.14,0.04639326]
[1748994780125,6.4407,155.16,155.14,0.04639326]
[1748994780526,0.04406563,155.18,155.14,0.04639326]
[1748994780720,6.48386563,155.18,155.15,6.4407]
[1748994781126,6.48386563,155.18,155.14,6.00578564]
[1748994781327,6.48386563,155.18,155.15,6.4406]
[1748994782022,0.04406563,155.18,155.16,6.4405]
[1748994783029,0.04406563,155.18,155.17,6.4401]
[1748994783841,0.04406563,155.18,155.14,0.04639326]
[1748994784732,5.95939238,155.17,155.14,0.04639326]
[1748994785230,5.95939238,155.15,155.14,0.04639326]
[1748994785431,12.40029238,155.15,155.14,0.04639326]
[1748994785626,5.95939238,155.15,155.07,35.2045]
[1748994786132,39.01939238,155.15,155.08,6.4438]
[1748994786327,5.95939238,155.13,155.07,33.06]
[1748994786640,6.4431,155.1,155.08,0.04394977]
[1748994788026,6.4434,155.09,155.08,0.04394977]
[1748994788427,0.04586455,155.12,155.08,0.04394977]
[1748994788624,6.00525693,155.12,155.08,0.04394977]
[1748994789039,6.4429,155.11,155.08,6.48774977]
[1748994790832,6.4429,155.11,155.08,0.04394977]
[1748994795439,6.4429,155.11,155.08,6.48774977]
[1748994796445,0.04586455,155.12,155.09,33.08]
[1748994796936,0.04586455,155.12,155.1,6.443]
[1748994797128,0.04586455,155.12,155.09,33.08]
[1748994797537,0.04586455,155.12,155.08,0.04394977]
[1748994798640,0.04586455,155.12,155.08,6.00334215]
[1748994799434,0.04586455,155.12,155.09,6.4434]
[1748994800442,6.48806455,155.12,155.09,6.4434]
[1748994800842,6.48806455,155.12,155.08,12.44704215]
[1748994801734,0.04586455,155.12,155.09,6.4434]
[1748994802242,0.04586455,155.12,155.08,6.00334215]
[1748994803332,0.04586455,155.12,155.1,5.95939238]
[1748994803739,0.04586455,155.12,155.08,0.04394977]
[1748994803945,0.04586455,155.12,155.1,5.95939238]
[1748994804347,0.04586455,155.12,155.11,6.4426]
[1748994806948,39.3316,155.18,155.14,6.4412]
[1748994807449,45.7716,155.18,155.14,6.4412]
[1748994807647,43.6392,155.18,155.14,6.4412]
[1748994807840,43.6392,155.18,155.15,6.4409]